{"text_format":"1","workbook":"xlsx","n_sheets":4,"sheets":["Instruções Gerais-Consentimento","Form_Candidatura","Tabelas","valid"],"not_rendered":{"charts":0,"images":1,"macros":1,"external_links":0,"defined_names":5,"comments":0,"pivot_tables":0},"unopened":[],"bounds":{"document_bytes":16777216,"sheet_cells":100000,"rows_first":2000,"rows_last":500,"rows_between":2000,"halvings":0,"cell_chars":16384,"cell_head_chars":4096},"cells_cut":0,"cells_raw":0,"read":"whole","date_system":"1900"}

{"sheet":"Instruções Gerais-Consentimento","index":0,"n_rows":46,"n_cols":3,"rows_kept":46,"cut":false,"hidden":false,"merged":[[34,1,34,14],[3,108,3,114],[3,115,3,121],[3,122,3,128],[3,129,3,135],[3,136,3,142],[3,143,3,149],[3,66,3,72],[3,73,3,79],[3,80,3,86],[3,87,3,93],[3,94,3,100],[3,101,3,107],[3,17,3,23],[3,24,3,30],[3,31,3,37],[3,38,3,44],[3,45,3,51],[3,52,3,58],[3,59,3,65],[8,1,10,11],[12,1,13,11],[3,234,3,240],[3,241,3,247],[3,248,3,254],[3,255,3,261],[3,262,3,268],[3,269,3,275],[3,192,3,198],[3,199,3,205],[3,206,3,212],[3,213,3,219],[3,220,3,226],[3,227,3,233],[3,150,3,156],[3,157,3,163],[3,164,3,170],[3,171,3,177],[3,178,3,184],[3,185,3,191],[3,360,3,366],[3,367,3,373],[3,374,3,380],[3,381,3,387],[3,388,3,394],[3,395,3,401],[3,318,3,324],[3,325,3,331],[3,332,3,338],[3,339,3,345],[3,346,3,352],[3,353,3,359],[3,276,3,282],[3,283,3,289],[3,290,3,296],[3,297,3,303],[3,304,3,310],[3,311,3,317],[3,486,3,492],[3,493,3,499],[3,500,3,506],[3,507,3,513],[3,514,3,520],[3,521,3,527],[3,444,3,450],[3,451,3,457],[3,458,3,464],[3,465,3,471],[3,472,3,478],[3,479,3,485],[3,402,3,408],[3,409,3,415],[3,416,3,422],[3,423,3,429],[3,430,3,436],[3,437,3,443],[3,612,3,618],[3,619,3,625],[3,626,3,632],[3,633,3,639],[3,640,3,646],[3,647,3,653],[3,570,3,576],[3,577,3,583],[3,584,3,590],[3,591,3,597],[3,598,3,604],[3,605,3,611],[3,528,3,534],[3,535,3,541],[3,542,3,548],[3,549,3,555],[3,556,3,562],[3,563,3,569],[3,738,3,744],[3,745,3,751],[3,752,3,758],[3,759,3,765],[3,766,3,772],[3,773,3,779],[3,696,3,702],[3,703,3,709],[3,710,3,716],[3,717,3,723],[3,724,3,730],[3,731,3,737],[3,654,3,660],[3,661,3,667],[3,668,3,674],[3,675,3,681],[3,682,3,688],[3,689,3,695],[3,864,3,870],[3,871,3,877],[3,878,3,884],[3,885,3,891],[3,892,3,898],[3,899,3,905],[3,822,3,828],[3,829,3,835],[3,836,3,842],[3,843,3,849],[3,850,3,856],[3,857,3,863],[3,780,3,786],[3,787,3,793],[3,794,3,800],[3,801,3,807],[3,808,3,814],[3,815,3,821],[3,990,3,996],[3,997,3,1003],[3,1004,3,1010],[3,1011,3,1017],[3,1018,3,1024],[3,1025,3,1031],[3,948,3,954],[3,955,3,961],[3,962,3,968],[3,969,3,975],[3,976,3,982],[3,983,3,989],[3,906,3,912],[3,913,3,919],[3,920,3,926],[3,927,3,933],[3,934,3,940],[3,941,3,947],[3,1116,3,1122],[3,1123,3,1129],[3,1130,3,1136],[3,1137,3,1143],[3,1144,3,1150],[3,1151,3,1157],[3,1074,3,1080],[3,1081,3,1087],[3,1088,3,1094],[3,1095,3,1101],[3,1102,3,1108],[3,1109,3,1115],[3,1032,3,1038],[3,1039,3,1045],[3,1046,3,1052],[3,1053,3,1059],[3,1060,3,1066],[3,1067,3,1073],[3,1242,3,1248],[3,1249,3,1255],[3,1256,3,1262],[3,1263,3,1269],[3,1270,3,1276],[3,1277,3,1283],[3,1200,3,1206],[3,1207,3,1213],[3,1214,3,1220],[3,1221,3,1227],[3,1228,3,1234],[3,1235,3,1241],[3,1158,3,1164],[3,1165,3,1171],[3,1172,3,1178],[3,1179,3,1185],[3,1186,3,1192],[3,1193,3,1199],[3,1368,3,1374],[3,1375,3,1381],[3,1382,3,1388],[3,1389,3,1395],[3,1396,3,1402],[3,1403,3,1409],[3,1326,3,1332],[3,1333,3,1339],[3,1340,3,1346],[3,1347,3,1353],[3,1354,3,1360],[3,1361,3,1367],[3,1284,3,1290],[3,1291,3,1297],[3,1298,3,1304],[3,1305,3,1311],[3,1312,3,1318],[3,1319,3,1325],[3,1494,3,1500],[3,1501,3,1507],[3,1508,3,1514],[3,1515,3,1521],[3,1522,3,1528],[3,1529,3,1535],[3,1452,3,1458],[3,1459,3,1465],[3,1466,3,1472],[3,1473,3,1479],[3,1480,3,1486],[3,1487,3,1493],[3,1410,3,1416],[3,1417,3,1423],[3,1424,3,1430],[3,1431,3,1437],[3,1438,3,1444],[3,1445,3,1451],[3,1620,3,1626],[3,1627,3,1633],[3,1634,3,1640],[3,1641,3,1647],[3,1648,3,1654],[3,1655,3,1661],[3,1578,3,1584],[3,1585,3,1591],[3,1592,3,1598],[3,1599,3,1605],[3,1606,3,1612],[3,1613,3,1619],[3,1536,3,1542],[3,1543,3,1549],[3,1550,3,1556],[3,1557,3,1563],[3,1564,3,1570],[3,1571,3,1577],[3,1746,3,1752],[3,1753,3,1759],[3,1760,3,1766],[3,1767,3,1773],[3,1774,3,1780],[3,1781,3,1787],[3,1704,3,1710],[3,1711,3,1717],[3,1718,3,1724],[3,1725,3,1731],[3,1732,3,1738],[3,1739,3,1745],[3,1662,3,1668],[3,1669,3,1675],[3,1676,3,1682],[3,1683,3,1689],[3,1690,3,1696],[3,1697,3,1703],[3,1872,3,1878],[3,1879,3,1885],[3,1886,3,1892],[3,1893,3,1899],[3,1900,3,1906],[3,1907,3,1913],[3,1830,3,1836],[3,1837,3,1843],[3,1844,3,1850],[3,1851,3,1857],[3,1858,3,1864],[3,1865,3,1871],[3,1788,3,1794],[3,1795,3,1801],[3,1802,3,1808],[3,1809,3,1815],[3,1816,3,1822],[3,1823,3,1829],[3,1998,3,2004],[3,2005,3,2011],[3,2012,3,2018],[3,2019,3,2025],[3,2026,3,2032],[3,2033,3,2039],[3,1956,3,1962],[3,1963,3,1969],[3,1970,3,1976],[3,1977,3,1983],[3,1984,3,1990],[3,1991,3,1997],[3,1914,3,1920],[3,1921,3,1927],[3,1928,3,1934],[3,1935,3,1941],[3,1942,3,1948],[3,1949,3,1955],[3,2124,3,2130],[3,2131,3,2137],[3,2138,3,2144],[3,2145,3,2151],[3,2152,3,2158],[3,2159,3,2165],[3,2082,3,2088],[3,2089,3,2095],[3,2096,3,2102],[3,2103,3,2109],[3,2110,3,2116],[3,2117,3,2123],[3,2040,3,2046],[3,2047,3,2053],[3,2054,3,2060],[3,2061,3,2067],[3,2068,3,2074],[3,2075,3,2081],[3,2250,3,2256],[3,2257,3,2263],[3,2264,3,2270],[3,2271,3,2277],[3,2278,3,2284],[3,2285,3,2291],[3,2208,3,2214],[3,2215,3,2221],[3,2222,3,2228],[3,2229,3,2235],[3,2236,3,2242],[3,2243,3,2249],[3,2166,3,2172],[3,2173,3,2179],[3,2180,3,2186],[3,2187,3,2193],[3,2194,3,2200],[3,2201,3,2207],[3,2376,3,2382],[3,2383,3,2389],[3,2390,3,2396],[3,2397,3,2403],[3,2404,3,2410],[3,2411,3,2417],[3,2334,3,2340],[3,2341,3,2347],[3,2348,3,2354],[3,2355,3,2361],[3,2362,3,2368],[3,2369,3,2375],[3,2292,3,2298],[3,2299,3,2305],[3,2306,3,2312],[3,2313,3,2319],[3,2320,3,2326],[3,2327,3,2333],[3,2502,3,2508],[3,2509,3,2515],[3,2516,3,2522],[3,2523,3,2529],[3,2530,3,2536],[3,2537,3,2543],[3,2460,3,2466],[3,2467,3,2473],[3,2474,3,2480],[3,2481,3,2487],[3,2488,3,2494],[3,2495,3,2501],[3,2418,3,2424],[3,2425,3,2431],[3,2432,3,2438],[3,2439,3,2445],[3,2446,3,2452],[3,2453,3,2459],[3,2628,3,2634],[3,2635,3,2641],[3,2642,3,2648],[3,2649,3,2655],[3,2656,3,2662],[3,2663,3,2669],[3,2586,3,2592],[3,2593,3,2599],[3,2600,3,2606],[3,2607,3,2613],[3,2614,3,2620],[3,2621,3,2627],[3,2544,3,2550],[3,2551,3,2557],[3,2558,3,2564],[3,2565,3,2571],[3,2572,3,2578],[3,2579,3,2585],[3,2754,3,2760],[3,2761,3,2767],[3,2768,3,2774],[3,2775,3,2781],[3,2782,3,2788],[3,2789,3,2795],[3,2712,3,2718],[3,2719,3,2725],[3,2726,3,2732],[3,2733,3,2739],[3,2740,3,2746],[3,2747,3,2753],[3,2670,3,2676],[3,2677,3,2683],[3,2684,3,2690],[3,2691,3,2697],[3,2698,3,2704],[3,2705,3,2711],[3,2880,3,2886],[3,2887,3,2893],[3,2894,3,2900],[3,2901,3,2907],[3,2908,3,2914],[3,2915,3,2921],[3,2838,3,2844],[3,2845,3,2851],[3,2852,3,2858],[3,2859,3,2865],[3,2866,3,2872],[3,2873,3,2879],[3,2796,3,2802],[3,2803,3,2809],[3,2810,3,2816],[3,2817,3,2823],[3,2824,3,2830],[3,2831,3,2837],[3,3006,3,3012],[3,3013,3,3019],[3,3020,3,3026],[3,3027,3,3033],[3,3034,3,3040],[3,3041,3,3047],[3,2964,3,2970],[3,2971,3,2977],[3,2978,3,2984],[3,2985,3,2991],[3,2992,3,2998],[3,2999,3,3005],[3,2922,3,2928],[3,2929,3,2935],[3,2936,3,2942],[3,2943,3,2949],[3,2950,3,2956],[3,2957,3,2963],[3,3132,3,3138],[3,3139,3,3145],[3,3146,3,3152],[3,3153,3,3159],[3,3160,3,3166],[3,3167,3,3173],[3,3090,3,3096],[3,3097,3,3103],[3,3104,3,3110],[3,3111,3,3117],[3,3118,3,3124],[3,3125,3,3131],[3,3048,3,3054],[3,3055,3,3061],[3,3062,3,3068],[3,3069,3,3075],[3,3076,3,3082],[3,3083,3,3089],[3,3258,3,3264],[3,3265,3,3271],[3,3272,3,3278],[3,3279,3,3285],[3,3286,3,3292],[3,3293,3,3299],[3,3216,3,3222],[3,3223,3,3229],[3,3230,3,3236],[3,3237,3,3243],[3,3244,3,3250],[3,3251,3,3257],[3,3174,3,3180],[3,3181,3,3187],[3,3188,3,3194],[3,3195,3,3201],[3,3202,3,3208],[3,3209,3,3215],[3,3384,3,3390],[3,3391,3,3397],[3,3398,3,3404],[3,3405,3,3411],[3,3412,3,3418],[3,3419,3,3425],[3,3342,3,3348],[3,3349,3,3355],[3,3356,3,3362],[3,3363,3,3369],[3,3370,3,3376],[3,3377,3,3383],[3,3300,3,3306],[3,3307,3,3313],[3,3314,3,3320],[3,3321,3,3327],[3,3328,3,3334],[3,3335,3,3341],[3,3510,3,3516],[3,3517,3,3523],[3,3524,3,3530],[3,3531,3,3537],[3,3538,3,3544],[3,3545,3,3551],[3,3468,3,3474],[3,3475,3,3481],[3,3482,3,3488],[3,3489,3,3495],[3,3496,3,3502],[3,3503,3,3509],[3,3426,3,3432],[3,3433,3,3439],[3,3440,3,3446],[3,3447,3,3453],[3,3454,3,3460],[3,3461,3,3467],[3,3636,3,3642],[3,3643,3,3649],[3,3650,3,3656],[3,3657,3,3663],[3,3664,3,3670],[3,3671,3,3677],[3,3594,3,3600],[3,3601,3,3607],[3,3608,3,3614],[3,3615,3,3621],[3,3622,3,3628],[3,3629,3,3635],[3,3552,3,3558],[3,3559,3,3565],[3,3566,3,3572],[3,3573,3,3579],[3,3580,3,3586],[3,3587,3,3593],[3,3762,3,3768],[3,3769,3,3775],[3,3776,3,3782],[3,3783,3,3789],[3,3790,3,3796],[3,3797,3,3803],[3,3720,3,3726],[3,3727,3,3733],[3,3734,3,3740],[3,3741,3,3747],[3,3748,3,3754],[3,3755,3,3761],[3,3678,3,3684],[3,3685,3,3691],[3,3692,3,3698],[3,3699,3,3705],[3,3706,3,3712],[3,3713,3,3719],[3,3888,3,3894],[3,3895,3,3901],[3,3902,3,3908],[3,3909,3,3915],[3,3916,3,3922],[3,3923,3,3929],[3,3846,3,3852],[3,3853,3,3859],[3,3860,3,3866],[3,3867,3,3873],[3,3874,3,3880],[3,3881,3,3887],[3,3804,3,3810],[3,3811,3,3817],[3,3818,3,3824],[3,3825,3,3831],[3,3832,3,3838],[3,3839,3,3845],[3,4014,3,4020],[3,4021,3,4027],[3,4028,3,4034],[3,4035,3,4041],[3,4042,3,4048],[3,4049,3,4055],[3,3972,3,3978],[3,3979,3,3985],[3,3986,3,3992],[3,3993,3,3999],[3,4000,3,4006],[3,4007,3,4013],[3,3930,3,3936],[3,3937,3,3943],[3,3944,3,3950],[3,3951,3,3957],[3,3958,3,3964],[3,3965,3,3971],[3,4140,3,4146],[3,4147,3,4153],[3,4154,3,4160],[3,4161,3,4167],[3,4168,3,4174],[3,4175,3,4181],[3,4098,3,4104],[3,4105,3,4111],[3,4112,3,4118],[3,4119,3,4125],[3,4126,3,4132],[3,4133,3,4139],[3,4056,3,4062],[3,4063,3,4069],[3,4070,3,4076],[3,4077,3,4083],[3,4084,3,4090],[3,4091,3,4097],[3,4266,3,4272],[3,4273,3,4279],[3,4280,3,4286],[3,4287,3,4293],[3,4294,3,4300],[3,4301,3,4307],[3,4224,3,4230],[3,4231,3,4237],[3,4238,3,4244],[3,4245,3,4251],[3,4252,3,4258],[3,4259,3,4265],[3,4182,3,4188],[3,4189,3,4195],[3,4196,3,4202],[3,4203,3,4209],[3,4210,3,4216],[3,4217,3,4223],[3,4392,3,4398],[3,4399,3,4405],[3,4406,3,4412],[3,4413,3,4419],[3,4420,3,4426],[3,4427,3,4433],[3,4350,3,4356],[3,4357,3,4363],[3,4364,3,4370],[3,4371,3,4377],[3,4378,3,4384],[3,4385,3,4391],[3,4308,3,4314],[3,4315,3,4321],[3,4322,3,4328],[3,4329,3,4335],[3,4336,3,4342],[3,4343,3,4349],[3,4518,3,4524],[3,4525,3,4531],[3,4532,3,4538],[3,4539,3,4545],[3,4546,3,4552],[3,4553,3,4559],[3,4476,3,4482],[3,4483,3,4489],[3,4490,3,4496],[3,4497,3,4503],[3,4504,3,4510],[3,4511,3,4517],[3,4434,3,4440],[3,4441,3,4447],[3,4448,3,4454],[3,4455,3,4461],[3,4462,3,4468],[3,4469,3,4475],[3,4644,3,4650],[3,4651,3,4657],[3,4658,3,4664],[3,4665,3,4671],[3,4672,3,4678],[3,4679,3,4685],[3,4602,3,4608],[3,4609,3,4615],[3,4616,3,4622],[3,4623,3,4629],[3,4630,3,4636],[3,4637,3,4643],[3,4560,3,4566],[3,4567,3,4573],[3,4574,3,4580],[3,4581,3,4587],[3,4588,3,4594],[3,4595,3,4601],[3,4770,3,4776],[3,4777,3,4783],[3,4784,3,4790],[3,4791,3,4797],[3,4798,3,4804],[3,4805,3,4811],[3,4728,3,4734],[3,4735,3,4741],[3,4742,3,4748],[3,4749,3,4755],[3,4756,3,4762],[3,4763,3,4769],[3,4686,3,4692],[3,4693,3,4699],[3,4700,3,4706],[3,4707,3,4713],[3,4714,3,4720],[3,4721,3,4727],[3,4896,3,4902],[3,4903,3,4909],[3,4910,3,4916],[3,4917,3,4923],[3,4924,3,4930],[3,4931,3,4937],[3,4854,3,4860],[3,4861,3,4867],[3,4868,3,4874],[3,4875,3,4881],[3,4882,3,4888],[3,4889,3,4895],[3,4812,3,4818],[3,4819,3,4825],[3,4826,3,4832],[3,4833,3,4839],[3,4840,3,4846],[3,4847,3,4853],[3,5022,3,5028],[3,5029,3,5035],[3,5036,3,5042],[3,5043,3,5049],[3,5050,3,5056],[3,5057,3,5063],[3,4980,3,4986],[3,4987,3,4993],[3,4994,3,5000],[3,5001,3,5007],[3,5008,3,5014],[3,5015,3,5021],[3,4938,3,4944],[3,4945,3,4951],[3,4952,3,4958],[3,4959,3,4965],[3,4966,3,4972],[3,4973,3,4979],[3,5148,3,5154],[3,5155,3,5161],[3,5162,3,5168],[3,5169,3,5175],[3,5176,3,5182],[3,5183,3,5189],[3,5106,3,5112],[3,5113,3,5119],[3,5120,3,5126],[3,5127,3,5133],[3,5134,3,5140],[3,5141,3,5147],[3,5064,3,5070],[3,5071,3,5077],[3,5078,3,5084],[3,5085,3,5091],[3,5092,3,5098],[3,5099,3,5105],[3,5274,3,5280],[3,5281,3,5287],[3,5288,3,5294],[3,5295,3,5301],[3,5302,3,5308],[3,5309,3,5315],[3,5232,3,5238],[3,5239,3,5245],[3,5246,3,5252],[3,5253,3,5259],[3,5260,3,5266],[3,5267,3,5273],[3,5190,3,5196],[3,5197,3,5203],[3,5204,3,5210],[3,5211,3,5217],[3,5218,3,5224],[3,5225,3,5231],[3,5400,3,5406],[3,5407,3,5413],[3,5414,3,5420],[3,5421,3,5427],[3,5428,3,5434],[3,5435,3,5441],[3,5358,3,5364],[3,5365,3,5371],[3,5372,3,5378],[3,5379,3,5385],[3,5386,3,5392],[3,5393,3,5399],[3,5316,3,5322],[3,5323,3,5329],[3,5330,3,5336],[3,5337,3,5343],[3,5344,3,5350],[3,5351,3,5357],[3,5526,3,5532],[3,5533,3,5539],[3,5540,3,5546],[3,5547,3,5553],[3,5554,3,5560],[3,5561,3,5567],[3,5484,3,5490],[3,5491,3,5497],[3,5498,3,5504],[3,5505,3,5511],[3,5512,3,5518],[3,5519,3,5525],[3,5442,3,5448],[3,5449,3,5455],[3,5456,3,5462],[3,5463,3,5469],[3,5470,3,5476],[3,5477,3,5483],[3,5652,3,5658],[3,5659,3,5665],[3,5666,3,5672],[3,5673,3,5679],[3,5680,3,5686],[3,5687,3,5693],[3,5610,3,5616],[3,5617,3,5623],[3,5624,3,5630],[3,5631,3,5637],[3,5638,3,5644],[3,5645,3,5651],[3,5568,3,5574],[3,5575,3,5581],[3,5582,3,5588],[3,5589,3,5595],[3,5596,3,5602],[3,5603,3,5609],[3,5778,3,5784],[3,5785,3,5791],[3,5792,3,5798],[3,5799,3,5805],[3,5806,3,5812],[3,5813,3,5819],[3,5736,3,5742],[3,5743,3,5749],[3,5750,3,5756],[3,5757,3,5763],[3,5764,3,5770],[3,5771,3,5777],[3,5694,3,5700],[3,5701,3,5707],[3,5708,3,5714],[3,5715,3,5721],[3,5722,3,5728],[3,5729,3,5735],[3,5904,3,5910],[3,5911,3,5917],[3,5918,3,5924],[3,5925,3,5931],[3,5932,3,5938],[3,5939,3,5945],[3,5862,3,5868],[3,5869,3,5875],[3,5876,3,5882],[3,5883,3,5889],[3,5890,3,5896],[3,5897,3,5903],[3,5820,3,5826],[3,5827,3,5833],[3,5834,3,5840],[3,5841,3,5847],[3,5848,3,5854],[3,5855,3,5861],[3,6030,3,6036],[3,6037,3,6043],[3,6044,3,6050],[3,6051,3,6057],[3,6058,3,6064],[3,6065,3,6071],[3,5988,3,5994],[3,5995,3,6001],[3,6002,3,6008],[3,6009,3,6015],[3,6016,3,6022],[3,6023,3,6029],[3,5946,3,5952],[3,5953,3,5959],[3,5960,3,5966],[3,5967,3,5973],[3,5974,3,5980],[3,5981,3,5987],[3,6156,3,6162],[3,6163,3,6169],[3,6170,3,6176],[3,6177,3,6183],[3,6184,3,6190],[3,6191,3,6197],[3,6114,3,6120],[3,6121,3,6127],[3,6128,3,6134],[3,6135,3,6141],[3,6142,3,6148],[3,6149,3,6155],[3,6072,3,6078],[3,6079,3,6085],[3,6086,3,6092],[3,6093,3,6099],[3,6100,3,6106],[3,6107,3,6113],[3,6282,3,6288],[3,6289,3,6295],[3,6296,3,6302],[3,6303,3,6309],[3,6310,3,6316],[3,6317,3,6323],[3,6240,3,6246],[3,6247,3,6253],[3,6254,3,6260],[3,6261,3,6267],[3,6268,3,6274],[3,6275,3,6281],[3,6198,3,6204],[3,6205,3,6211],[3,6212,3,6218],[3,6219,3,6225],[3,6226,3,6232],[3,6233,3,6239],[3,6408,3,6414],[3,6415,3,6421],[3,6422,3,6428],[3,6429,3,6435],[3,6436,3,6442],[3,6443,3,6449],[3,6366,3,6372],[3,6373,3,6379],[3,6380,3,6386],[3,6387,3,6393],[3,6394,3,6400],[3,6401,3,6407],[3,6324,3,6330],[3,6331,3,6337],[3,6338,3,6344],[3,6345,3,6351],[3,6352,3,6358],[3,6359,3,6365],[3,6534,3,6540],[3,6541,3,6547],[3,6548,3,6554],[3,6555,3,6561],[3,6562,3,6568],[3,6569,3,6575],[3,6492,3,6498],[3,6499,3,6505],[3,6506,3,6512],[3,6513,3,6519],[3,6520,3,6526],[3,6527,3,6533],[3,6450,3,6456],[3,6457,3,6463],[3,6464,3,6470],[3,6471,3,6477],[3,6478,3,6484],[3,6485,3,6491],[3,6660,3,6666],[3,6667,3,6673],[3,6674,3,6680],[3,6681,3,6687],[3,6688,3,6694],[3,6695,3,6701],[3,6618,3,6624],[3,6625,3,6631],[3,6632,3,6638],[3,6639,3,6645],[3,6646,3,6652],[3,6653,3,6659],[3,6576,3,6582],[3,6583,3,6589],[3,6590,3,6596],[3,6597,3,6603],[3,6604,3,6610],[3,6611,3,6617],[3,6786,3,6792],[3,6793,3,6799],[3,6800,3,6806],[3,6807,3,6813],[3,6814,3,6820],[3,6821,3,6827],[3,6744,3,6750],[3,6751,3,6757],[3,6758,3,6764],[3,6765,3,6771],[3,6772,3,6778],[3,6779,3,6785],[3,6702,3,6708],[3,6709,3,6715],[3,6716,3,6722],[3,6723,3,6729],[3,6730,3,6736],[3,6737,3,6743],[3,6912,3,6918],[3,6919,3,6925],[3,6926,3,6932],[3,6933,3,6939],[3,6940,3,6946],[3,6947,3,6953],[3,6870,3,6876],[3,6877,3,6883],[3,6884,3,6890],[3,6891,3,6897],[3,6898,3,6904],[3,6905,3,6911],[3,6828,3,6834],[3,6835,3,6841],[3,6842,3,6848],[3,6849,3,6855],[3,6856,3,6862],[3,6863,3,6869],[3,7038,3,7044],[3,7045,3,7051],[3,7052,3,7058],[3,7059,3,7065],[3,7066,3,7072],[3,7073,3,7079]],"merged_total":2343,"flags":["merged_cut"]}
[]
[]
[]
[null,null,"Formulário de Candidatura por Mobilidade Estatutária"]
[]
[]
[null,"Instruções gerais de preenchimento"]
[]
[null,"Este formulário destina-se à apresentação de candidatura para mobilidade estatutária para preenchimento de Postos de Trabalho, constantes do Mapa de Pessoal do IGeFE I.P."]
[]
[]
[]
[null,"O recrutamento é destinado a candidatos com relação jurídica de emprego público por tempo indeterminado previamente estabelecida, para o exercício de funções."]
[]
[]
[null,"Certifique-se de que responde a todas as questões e que efetua o preenchimento dos dados da forma mais completa possível,"]
[null,"conforme solicitado em cada campo."]
[]
[null,"O preenchimento correto dos dados é da exclusiva responsabilidade do/a candidato/a."]
[]
[null,"A confirmação do preenchimento integral do formulário determina a impossibilidade da sua retificação, sendo aceites apenas os"]
[null,"formulários enviados dentro do prazo de candidatura."]
[]
[null,"Para que a candidatura possa ser considerada completa, é aceite apenas um formulário por candidato/a nas versões Excel e PDF,"]
[null,"acompanhado dos restantes documentos comprovativos."]
[]
[]
[null,"Após envio da candidatura, via e-mail, do formulário e respetivos documentos comprovativos deverá aguardar o envio de um e-mail comprovativo da receção da mesma."]
[null,"comprovativo da receção da mesma."]
[]
[]
[null,"Para prestação de esclarecimentos poderá utilizar o endereço eletrónico recrutamento@igefe.medu.pt ou o contacto telefónico"]
[null,"213 949 200."]
[]
[null,"Consentimento Informado"]
[]
[null,"Os dados recolhidos no âmbito do recrutamento serão utilizados para os fins exclusivos e pelo tempo estritamente"]
[null,"necessário à sua tramitação."]
[]
[null,"É-lhe conferido o direito de acesso, retificação, atualização e eliminação dos dados mencionados neste formulário, através do"]
[null,"endereço eletrónico recrutamento@igefe.medu.pt, cujo gestor é o Núcleo de Gestão de Pessoas do IGeFE, IP."]
[]
[]
[null,"Selecione o campo, caso tenha compreendido as instruções de preenchimento e"]
[null,"autorize o tratamento dos seus dados pessoais por parte do IGeFE, IP durante o"]
[null,"tempo considerado necessário para tramitação do presente recrutamento."]

{"sheet":"Form_Candidatura","index":1,"n_rows":194,"n_cols":20,"rows_kept":194,"cut":false,"hidden":false,"merged":[[134,1,134,6],[30,1,31,5],[30,7,30,9],[101,4,101,5],[112,1,113,6],[118,1,118,2],[34,1,34,2],[43,4,43,5],[45,4,45,9],[36,1,36,2],[48,1,48,2],[35,1,35,2],[41,1,41,2],[39,1,39,2],[55,4,55,9],[33,1,33,2],[120,1,120,2],[118,6,119,8],[47,4,47,9],[103,1,103,2],[84,4,84,9],[88,4,88,5],[88,6,88,7],[90,4,90,5],[84,1,84,2],[69,6,69,13],[57,4,57,9],[63,4,63,5],[65,4,65,9],[90,6,90,7],[89,4,89,5],[89,6,89,7],[91,6,91,7],[91,4,91,5],[69,1,69,2],[106,1,106,14],[107,5,108,14],[3,3,3,14],[5,1,5,14],[18,1,18,14],[49,1,49,14],[67,1,67,14],[95,1,95,14],[28,1,28,2],[12,1,12,2],[14,1,14,2],[16,1,16,2],[16,4,16,9],[20,1,20,2],[22,1,22,2],[20,4,20,9],[22,4,22,5],[87,2,87,11],[51,2,51,12],[77,4,77,9],[24,4,24,5],[33,4,33,9],[53,4,53,5],[37,4,37,6],[39,4,39,6],[41,4,41,6],[128,1,128,2],[121,5,125,8],[130,1,130,14],[132,1,132,14],[11,1,11,14],[128,6,128,9],[126,1,126,2],[127,6,127,8],[98,4,99,9],[110,1,110,14],[115,1,115,14],[116,1,116,14],[122,1,122,2],[124,1,124,2],[103,4,103,9],[71,1,71,2],[73,1,73,2],[75,1,75,2],[79,1,79,2],[93,4,93,5],[97,1,97,2],[97,4,97,9],[61,4,61,9],[43,1,43,2],[81,1,81,2],[86,1,86,2],[79,4,79,9],[108,1,108,2],[100,4,100,5],[12,4,12,9],[14,4,14,9],[81,4,82,9],[7,1,7,2],[7,4,7,6],[9,1,9,2],[9,4,9,6],[28,4,28,5],[45,1,45,2],[27,7,27,9],[24,1,24,2],[26,1,26,2]]}
[]
[]
[]
[null,null,null,"Formulário de Candidatura por Mobilidade Estatutária"]
[]
[null,"Código de Identificação do Recrutamento"]
[]
[null,"*Código da Publicação BEP"]
[]
[null,"Ref.ª "]
[]
[null,"Caracterização do Posto de Trabalho"]
[null,"Carreira"]
[]
[null,"Categoria"]
[]
[null,"Área de Atividade"]
[]
[null,"1. Dados Pessoais"]
[]
[null,"*Nome Completo"]
[]
[null,"*Data de Nascimento",null,null,null,null,"(dd/mm/aaaa)"]
[]
[null,"*Sexo"]
[]
[null,"*Nacionalidade",null,null,null,null,null,{"$f":"IF(valid!P3=3,\"Indique a sua nacionalidade:\",\"\")","v":""}]
[]
[null,"*N.º de Identificação Civil"]
[]
[null,"*Caso não disponha de nacionalidade portuguesa, insira, por favor, o seu número de passaporte."]
[]
[]
[null,"*Morada"]
[]
[null,"*Código Postal",null,null,null,"-"]
[]
[null,null,"*Distrito"]
[]
[null,"*Concelho de Residência"]
[]
[null,"*Localidade"]
[]
[null,"N.º de contacto"]
[]
[null,"*E-mail"]
[]
[null,null,null,null,"Informação: Este endereço será considerado como a via de contacto priveligiada para efeitos do presente procedimento concursal (contactos com o Júri e envio de notificações e convocatórias), pelo que deverá indicar um endereço de e-mail que utilize com regularidade."]
[]
[null,"2. Nível Habilitacional"]
[]
[null,null,"Selecione uma opção indicando posteriormente a respetiva designação no campo \"Curso\" e o respetivo certificado."]
[]
[null,null,"*Habilitação"]
[]
[null,null,"*Curso"]
[]
[null,null,null,null,"Informação: Caso se aplique mais do que uma situação, deverá efetuar o procedimento descrito para cada grau académico de que disponha."]
[]
[null,null,"Habilitação"]
[]
[null,null,"Curso"]
[]
[null,null,"Habilitação"]
[]
[null,null,"Curso"]
[]
[null,"3. Situação Jurídico-Funcional do Trabalhador"]
[]
[null,"*Titular de vínculo de emprego público",null,null,null,null,{"$f":"IF(valid!AI3=3,\"Passar para o ponto 4. Experiência Profissional e Funções Exercidas\",IF(valid!AI3=2,\"Deverá enviar a declaração institucional com identificação do vínculo de emprego público detido, quando exista, bem como da carreira e categoria de que seja titular e posição remuneratória\",\"\"))","v":""}]
[]
[null,"Nomeação"]
[]
[null,"Contrato"]
[]
[null,"*Situação atual"]
[null,null,null,null,{"$f":"IF(valid!AL3=5,\"Por favor indique a sua situação profissional atual:\",\"\")","v":""}]
[]
[]
[null,"*Órgão ou serviço onde exerce ou por último exerceu funções"]
[]
[null,"*Carreira e categoria detidas"]
[]
[]
[null,"*Atividade exercida ou que por último exerceu no órgão ou serviço"]
[]
[null,"Avaliação Desempenho"]
[null,null,"Indique as avaliações obtidas nos últimos biénios e submeta a declaração comprovativa. Caso não detenha qualquer avaliação nos biénios referidos, selecione a opção \"Não aplicável\" e indique o motivo."]
[null,null,null,null,"2017/2018",null,"2019/2020"]
[]
[null,null,null,null,"2021/2022",null,"Não aplicável"]
[]
[]
[null,null,null,null,{"$f":"IF(valid!AV3=TRUE,\"Motivo:\",\"\")","v":""}]
[]
[null,"4. Experiência Profissional e Funções Exercidas"]
[]
[null,"4.1. Funções exercidas, diretamente relacionadas com o posto de trabalho a que se candidata"]
[null,null,null,null,{"$f":"IF(E98<>0,\"Caso tenha desempenhado funções diretamente relacionadas com o posto de trabalho, por favor, junte ao e-mail a enviar a declaração institucional comprovativa do respetivo conteúdo funcional.\",\"\")","v":""}]
[]
[null,null,null,null,"Data início\n(dd/mm/aaaa)",null,null,"Data fim\n(dd/mm/aaaa)"]
[]
[]
[null,"4.2. Outras funções e atividades exercidas"]
[]
[]
[null,"5. Necessidades Especiais alínea f) do n.º1 do artigo 13.º da Portaria n.º 233/2022, de 9 de setembro."]
[null,null,null,null,null,{"$f":"IF(valid!BF3=2,\"Caso tenha selecionado a opção 'Sim', por favor junte a declaração comprovativa do respetivo grau de incapacidade e tipo de deficiência à candidatura.\",\"\")","v":""}]
[null,"*Portador de Deficiência "]
[]
[null,"6. Declaração alínea g) do n.º1 do artigo 13.º da Portaria n.º 233/2022, de 9 de setembro."]
[]
[null,"*“Declaro que são verdadeiras as informações prestadas na candidatura”."]
[]
[]
[null,"7. Documentos anexados à candidatura"]
[null," \nDeverá assinalar todos os documentos que anexa à sua candidatura.  \nA sua candidatura só poderá ser considerada entregue, após confirmação de e-mail, conforme indicado."]
[]
[null,"*Curriculum vitae",null,null,null,null,"Declaração comprovativa do respetivo grau de incapacidade e tipo de deficiência"]
[]
[null,"*Certificado de Habilitações"]
[null,null,null,null,null,"Declaração institucional com identificação do vínculo de emprego público detido, quando exista, bem como da carreira e categoria de que seja titular, da posição remuneratória que detém nessa data, da atividade que executa e do órgão ou serviço onde exerce funções."]
[null,"Comprovativos de formação profissional"]
[]
[null,"Declaração de Inscrição em Ordem Profissional"]
[]
[null,"Comprovativo de Avaliação de Desempenho"]
[null,null,null,null,null,null,"Outros"]
[null,"Formulário de candidatura em Excel e PDF"]
[]
[null,"8. Confirmação de Submissão de Candidatura"]
[]
[null,"Caso selecione a opção “Sim”, o preenchimento deste formulário estará concluído, não podendo efetuar quaisquer alterações ao seu conteúdo. Deverá converter este formulário também numa versão PDF, juntamente com os documentos comprovativos que instruem a sua candidatura. Para que a sua candidatura possa ser considerada completa terá de remeter todos os documentos comprovativos dentro do prazo de candidatura. Após esta submissão, receberá, em resposta, um e-mail comprovativo da submissão da sua candidatura. \n\nConverter ficheiro em .PDF:\n\n           1º. Selecionar o separador Ficheiro na barra de ferramentas;\n           2º. Ecolher a opção Imprimir;\n           3º. Na seleção da impressora a utilizar, selecionar \"Print to PDF\" ;\n           4º. Clicar no botão \"Imprimir\" e o ficheiro será convertido para .PDF e solicitado o local onde pretende guardar o documento.\nou\n           1º. Selecionar o separador Ficheiro na barra de ferramentas;\n           2º. Escolher a opção Guardar como;\n           3º. Selecionar a área onde pretende guardar o documento;\n           4º. Selecionar no campo Guardar com o tipo: e escolher a opção PDF.\n"]
[]
[null,"*\"Considero o preenchimento do formulário de candidatura completo e pretendo submeter o formulário\""]
[]
[]
[]
[null,{"$f":"NOW()","v":"2024-04-29T17:50:59.670"}]
[]
[]
[]
[]
[]
[]
[]
[]
[]
[]
[]
[]
[]
[]
[]
[]
[]
[]
[]
[]
[]
[]
[]
[]
[]
[]
[]
[]
[]
[]
["Aveiro","Beja","Braga","Bragança","Castelo Branco","Coimbra","Évora","Faro","Guarda","Leiria","Lisboa","Portalegre","Porto","Santarém","Setúbal","Viana do Castelo","Vila Real","Viseu","Açores","Madeira"]
["Águeda","Aljustrel","Amares","Alfândega da Fé","Belmonte","Arganil","Alandroal","Albufeira","Aguiar da Beira","Alcobaça","Alenquer","Alter do Chão","Amarante","Abrantes","Alcácer do Sal","Arcos de Valdevez","Alijó","Armamar"]
["Albergaria-a-Velha","Almodôvar","Barcelos","Bragança","Castelo Branco","Cantanhede","Arraiolos","Alcoutim","Almeida","Alvaiázere","Amadora","Arronches","Baião","Alcanena","Alcochete","Caminha","Boticas","Carregal do Sal"]
["Anadia","Alvito","Braga","Carrazeda de Ansiães","Covilhã","Coimbra","Borba","Aljezur","Celorico da Beira","Ansião","Arruda dos Vinhos","Avis","Felgueiras","Almeirim","Almada","Melgaço","Chaves","Castro Daire"]
["Arouca","Barrancos","Cabeceiras de Basto","Freixo de Espada à Cinta","Fundão","Condeixa-a-Nova","Estremoz","Castro Marim","Figueira de Castelo Rodrigo","Batalha","Azambuja","Campo Maior","Gondomar","Alpiarça","Barreiro","Monção","Mesão Frio","Cinfães"]
["Aveiro","Beja","Celorico de Basto","Macedo de Cavaleiros","Idanha-a-Nova","Figueira da Foz","Évora","Faro","Fornos de Algodres","Bombarral","Cadaval","Castelo de Vide","Lousada","Benavente","Grândola","Paredes de Coura","Mondim de Basto","Lamego"]
["Castelo de Paiva","Castro Verde","Esposende","Miranda do Douro","Oleiros","Góis","Montemor-o-Novo","Lagoa","Gouveia","Caldas da Rainha","Cascais","Crato","Maia","Cartaxo","Moita","Ponte da Barca","Montalegre","Mangualde"]
["Espinho","Cuba","Fafe","Mirandela","Penamacor","Lousã","Mora","Lagos","Guarda","Castanheira de Pera","Lisboa","Elvas","Marco de Canaveses","Chamusca","Montijo","Ponte de Lima","Murça","Moimenta da Beira"]
["Estarreja","Ferreira do Alentejo","Guimarães","Mogadouro","Proença-a-Nova","Mira","Mourão","Loulé","Manteigas","Figueiró dos Vinhos","Loures","Fronteira","Matosinhos","Constância","Palmela","Valença","Peso da Régua","Mortágua"]
["Ílhavo","Mértola","Póvoa de Lanhoso","Torre de Moncorvo","Sertã","Miranda do Corvo","Portel","Monchique","Mêda","Leiria","Lourinhã","Gavião","Paços de Ferreira","Coruche","Santiago do Cacém","Viana do Castelo","Ribeira de Pena","Nelas"]
["Mealhada","Moura","Terras de Bouro","Vila Flor","Vila de Rei","Montemor-o-Velho","Redondo","Olhão","Pinhel","Marinha Grande","Mafra","Marvão","Paredes","Entroncamento","Seixal","Vila Nova de Cerveira","Sabrosa","Oliveira de Frades"]
["Murtosa","Odemira","Vieira do Minho","Vimioso","Vila Velha de Ródão","Oliveira do Hospital","Reguengos de Monsaraz","Portimão","Sabugal","Nazaré","Odivelas","Monforte","Penafiel","Ferreira do Zêzere","Sesimbra",null,"Santa Marta de Penaguião","Penalva do Castelo"]
["Oliveira de Azeméis","Ourique","Vila Nova de Famalicão","Vinhais",null,"Pampilhosa da Serra","Vendas Novas","São Brás de Alportel","Seia","Óbidos","Oeiras","Nisa","Porto","Golegã","Setúbal",null,"Valpaços","Penedono"]
["Oliveira do Bairro","Serpa","Vila Verde",null,null,"Penacova","Viana do Alentejo","Silves","Trancoso","Pedrógão Grande","Sintra","Ponte de Sor","Póvoa de Varzim","Mação","Sines",null,"Vila Pouca de Aguiar","Resende"]
["Ovar","Vidigueira","Vizela",null,null,"Penela","Vila Viçosa","Tavira","Vila Nova de Foz Côa","Peniche","Sobral de Monte Agraço","Portalegre","Santo Tirso","Ourém",null,null,"Vila Real","Santa Comba Dão"]
["Santa Maria da Feira",null,null,null,null,"Soure",null,"Vila do Bispo",null,"Pombal","Torres Vedras","Sousel","Trofa","Rio Maior",null,null,null,"São João da Pesqueira"]
["São João da Madeira",null,null,null,null,"Tábua",null,"Vila Real de Santo António",null,"Porto de Mós","Vila Franca de Xira","Olivença","Valongo","Salvaterra de Magos",null,null,null,"São Pedro do Sul"]
["Sever do Vouga",null,null,null,null,"Vila Nova de Poiares",null,null,null,null,null,null,"Vila do Conde","Santarém",null,null,null,"Sátão"]
["Vagos",null,null,null,null,null,null,null,null,null,null,null,"Vila Nova de Gaia","Sardoal",null,null,null,"Sernancelhe"]
["Vale de Cambra",null,null,null,null,null,null,null,null,null,null,null,null,"Tomar",null,null,null,"Tabuaço"]
[null,null,null,null,null,null,null,null,null,null,null,null,null,"Torres Novas",null,null,null,"Tarouca"]
[null,null,null,null,null,null,null,null,null,null,null,null,null,"Vila Nova da Barquinha",null,null,null,"Tondela"]
[null,null,null,null,null,null,null,null,null,null,null,null,null,null,null,null,null,"Vila Nova de Paiva"]
[null,null,null,null,null,null,null,null,null,null,null,null,null,null,null,null,null,"Viseu"]
[null,null,null,null,null,null,null,null,null,null,null,null,null,null,null,null,null,"Vouzela"]

{"sheet":"Tabelas","index":2,"n_rows":282,"n_cols":29,"rows_kept":282,"cut":false,"hidden":true,"merged":[]}
[]
["Tabela 1 - Sim/Não",null,"Tabela 6 - Habilitações",null,"Tabela 8 - Contrato",null,"Distrito","Concelhos"]
[null,null,null,null,null,null,null,null,null,"Aveiro","Beja","Braga","Bragança","Castelo Branco","Coimbra","Évora","Faro","Guarda","Leiria","Lisboa","Portalegre","Porto","Santarém","Setúbal","Viana do Castelo","Vila Real","Viseu","Açores","Madeira"]
["Sim",null,"Menos de 4 anos de escolaridade",null,"CTFP - Tempo indeterminado",null,"Aveiro","Águeda",null,"Águeda","Aljustrel","Amares","Alfândega da Fé","Belmonte","Arganil","Alandroal","Albufeira","Aguiar da Beira","Alcobaça","Alenquer","Alter do Chão","Amarante","Abrantes","Alcácer do Sal","Arcos de Valdevez","Alijó","Armamar"]
["Não",null,"4 anos de escolaridade (1 º ciclo do ensino básico)",null,"CTFP - Tempo resolutivo certo",null,"Aveiro","Albergaria-a-Velha",null,"Albergaria-a-Velha","Almodôvar","Barcelos","Bragança","Castelo Branco","Cantanhede","Arraiolos","Alcoutim","Almeida","Alvaiázere","Amadora","Arronches","Baião","Alcanena","Alcochete","Caminha","Boticas","Carregal do Sal"]
[null,null,"6 anos de escolaridade (2º ciclo do ensino básico)",null,"CTFP - Tempo resolutivo incerto",null,"Aveiro","Anadia",null,"Anadia","Alvito","Braga","Carrazeda de Ansiães","Covilhã","Coimbra","Borba","Aljezur","Celorico da Beira","Ansião","Arruda dos Vinhos","Avis","Felgueiras","Almeirim","Almada","Melgaço","Chaves","Castro Daire"]
["Tabela 2 - Carreira",null,"9º ano (3º ciclo do ensino básico)",null,null,null,"Aveiro","Arouca",null,"Arouca","Barrancos","Cabeceiras de Basto","Freixo de Espada à Cinta","Fundão","Condeixa-a-Nova","Estremoz","Castro Marim","Figueira de Castelo Rodrigo","Batalha","Azambuja","Campo Maior","Gondomar","Alpiarça","Barreiro","Monção","Mesão Frio","Cinfães"]
[null,null,"11º ano",null,null,null,"Aveiro","Aveiro",null,"Aveiro","Beja","Celorico de Basto","Macedo de Cavaleiros","Idanha-a-Nova","Figueira da Foz","Évora","Faro","Fornos de Algodres","Bombarral","Cadaval","Castelo de Vide","Lousada","Benavente","Grândola","Paredes de Coura","Mondim de Basto","Lamego"]
["Técnico Superior",null,"12º ano (ensino secundário)",null,"Tabela 9 - Situação Atual",null,"Aveiro","Castelo de Paiva",null,"Castelo de Paiva","Castro Verde","Esposende","Miranda do Douro","Oleiros","Góis","Montemor-o-Novo","Lagoa","Gouveia","Caldas da Rainha","Cascais","Crato","Maia","Cartaxo","Moita","Ponte da Barca","Montalegre","Mangualde"]
["Assistente Técnico",null,"Curso tecnológico/profissional/outros (nível III, com equivalência ao 12.º ano)",null,null,null,"Aveiro","Espinho",null,"Espinho","Cuba","Fafe","Mirandela","Penamacor","Lousã","Mora","Lagos","Guarda","Castanheira de Pera","Lisboa","Elvas","Marco de Canaveses","Chamusca","Montijo","Ponte de Lima","Murça","Moimenta da Beira"]
["Assistente Operacional",null,"Bacharelato",null,"Em exercício de funções",null,"Aveiro","Estarreja",null,"Estarreja","Ferreira do Alentejo","Guimarães","Mogadouro","Proença-a-Nova","Mira","Mourão","Loulé","Manteigas","Figueiró dos Vinhos","Loures","Fronteira","Matosinhos","Constância","Palmela","Valença","Peso da Régua","Mortágua"]
[null,null,"Licenciatura",null,"Em licença",null,"Aveiro","Ílhavo",null,"Ílhavo","Mértola","Póvoa de Lanhoso","Torre de Moncorvo","Sertã","Miranda do Corvo","Portel","Monchique","Mêda","Leiria","Lourinhã","Gavião","Paços de Ferreira","Coruche","Santiago do Cacém","Viana do Castelo","Ribeira de Pena","Nelas"]
[null,null,"Pós-graduação",null,"Em valorização profissional",null,"Aveiro","Mealhada",null,"Mealhada","Moura","Terras de Bouro","Vila Flor","Vila de Rei","Montemor-o-Velho","Redondo","Olhão","Pinhel","Marinha Grande","Mafra","Marvão","Paredes","Entroncamento","Seixal","Vila Nova de Cerveira","Sabrosa","Oliveira de Frades"]
["Tabela 3 - Carreira e Outra",null,"Mestrado",null,"Outra",null,"Aveiro","Murtosa",null,"Murtosa","Odemira","Vieira do Minho","Vimioso","Vila Velha de Ródão","Oliveira do Hospital","Reguengos de Monsaraz","Portimão","Sabugal","Nazaré","Odivelas","Monforte","Penafiel","Ferreira do Zêzere","Sesimbra",null,"Santa Marta de Penaguião","Penalva do Castelo"]
[null,null,"Doutoramento",null,null,null,"Aveiro","Oliveira de Azeméis",null,"Oliveira de Azeméis","Ourique","Vila Nova de Famalicão","Vinhais",null,"Pampilhosa da Serra","Vendas Novas","São Brás de Alportel","Seia","Óbidos","Oeiras","Nisa","Porto","Golegã","Setúbal",null,"Valpaços","Penedono"]
["Técnico Superior",null,"Curso de Especialização ",null,null,null,"Aveiro","Oliveira do Bairro",null,"Oliveira do Bairro","Serpa","Vila Verde",null,null,"Penacova","Viana do Alentejo","Silves","Trancoso","Pedrógão Grande","Sintra","Ponte de Sor","Póvoa de Varzim","Mação","Sines",null,"Vila Pouca de Aguiar","Resende"]
["Assistente Técnico",null,"Habilitação Ignorada",null,null,null,"Aveiro","Ovar",null,"Ovar","Vidigueira","Vizela",null,null,"Penela","Vila Viçosa","Tavira","Vila Nova de Foz Côa","Peniche","Sobral de Monte Agraço","Portalegre","Santo Tirso","Ourém",null,null,"Vila Real","Santa Comba Dão"]
["Assistente Operacional",null,null,null,"Tabela 10 - Nacionalidade",null,"Aveiro","Santa Maria da Feira",null,"Santa Maria da Feira",null,null,null,null,"Soure",null,"Vila do Bispo",null,"Pombal","Torres Vedras","Sousel","Trofa","Rio Maior",null,null,null,"São João da Pesqueira"]
["Outra",null,null,null,null,null,"Aveiro","São João da Madeira",null,"São João da Madeira",null,null,null,null,"Tábua",null,"Vila Real de Santo António",null,"Porto de Mós","Vila Franca de Xira","Olivença","Valongo","Salvaterra de Magos",null,null,null,"São Pedro do Sul"]
[null,null,null,null,"Portuguesa",null,"Aveiro","Sever do Vouga",null,"Sever do Vouga",null,null,null,null,"Vila Nova de Poiares",null,null,null,null,null,null,"Vila do Conde","Santarém",null,null,null,"Sátão"]
[null,null,null,null,"Outra",null,"Aveiro","Vagos",null,"Vagos",null,null,null,null,null,null,null,null,null,null,null,"Vila Nova de Gaia","Sardoal",null,null,null,"Sernancelhe"]
["Tabela 4 - Vínculo",null,null,null,null,null,"Aveiro","Vale de Cambra",null,"Vale de Cambra",null,null,null,null,null,null,null,null,null,null,null,null,"Tomar",null,null,null,"Tabuaço"]
[null,null,null,null,null,null,"Beja","Aljustrel",null,null,null,null,null,null,null,null,null,null,null,null,null,null,"Torres Novas",null,null,null,"Tarouca"]
["Vínculo de Emprego Público Tempo indeterminado",null,null,null,"Tabela 11 - Distrito",null,"Beja","Almodôvar",null,null,null,null,null,null,null,null,null,null,null,null,null,null,"Vila Nova da Barquinha",null,null,null,"Tondela"]
["Vínculo de Emprego Público Tempo determinado",null,"Tabela 7 - Nomeação",null,null,null,"Beja","Alvito",null,null,null,null,null,null,null,null,null,null,null,null,null,null,null,null,null,null,"Vila Nova de Paiva"]
["Vínculo de Emprego Público Tempo indeterminável",null,null,1,"Aveiro",null,"Beja","Barrancos",null,null,null,null,null,null,null,null,null,null,null,null,null,null,null,null,null,null,"Viseu"]
[null,null,"Definitiva",2,"Beja",null,"Beja","Beja",null,null,null,null,null,null,null,null,null,null,null,null,null,null,null,null,null,null,"Vouzela"]
[null,null,"Transitória por tempo determinado",3,"Braga",null,"Beja","Castro Verde"]
["Tabela 5 - Sexo",null,"Transitória por tempo determinável",4,"Bragança",null,"Beja","Cuba"]
[null,null,null,5,"Castelo Branco",null,"Beja","Ferreira do Alentejo"]
["Masculino",null,null,6,"Coimbra",null,"Beja","Mértola"]
["Feminino",null,null,7,"Évora",null,"Beja","Moura"]
[null,null,null,8,"Faro",null,"Beja","Odemira"]
[null,null,null,9,"Guarda",null,"Beja","Ourique"]
[null,null,null,10,"Leiria",null,"Beja","Serpa"]
[null,null,null,11,"Lisboa",null,"Beja","Vidigueira"]
[null,null,null,12,"Portalegre",null,"Braga ","Amares"]
[null,null,null,13,"Porto",null,"Braga ","Barcelos"]
[null,null,null,14,"Santarém",null,"Braga ","Braga"]
[null,null,null,15,"Setúbal",null,"Braga ","Cabeceiras de Basto"]
[null,null,null,16,"Viana do Castelo",null,"Braga ","Celorico de Basto"]
[null,null,null,17,"Vila Real",null,"Braga ","Esposende"]
[null,null,null,18,"Viseu",null,"Braga ","Fafe"]
[null,null,null,19,"Açores",null,"Braga ","Guimarães"]
[null,null,null,20,"Madeira",null,"Braga ","Póvoa de Lanhoso"]
[null,null,null,null,null,null,"Braga ","Terras de Bouro"]
[null,null,null,null,null,null,"Braga ","Vieira do Minho"]
[null,null,null,null,null,null,"Braga ","Vila Nova de Famalicão"]
[null,null,null,null,null,null,"Braga ","Vila Verde"]
[null,null,null,null,null,null,"Braga ","Vizela"]
[null,null,null,null,null,null,"Bragança","Alfândega da Fé"]
[null,null,null,null,null,null,"Bragança","Bragança"]
[null,null,null,null,null,null,"Bragança","Carrazeda de Ansiães"]
[null,null,null,null,null,null,"Bragança","Freixo de Espada à Cinta"]
[null,null,null,null,null,null,"Bragança","Macedo de Cavaleiros"]
[null,null,null,null,null,null,"Bragança","Miranda do Douro"]
[null,null,null,null,null,null,"Bragança","Mirandela"]
[null,null,null,null,null,null,"Bragança","Mogadouro"]
[null,null,null,null,null,null,"Bragança","Torre de Moncorvo"]
[null,null,null,null,null,null,"Bragança","Vila Flor"]
[null,null,null,null,null,null,"Bragança","Vimioso"]
[null,null,null,null,null,null,"Bragança","Vinhais"]
[null,null,null,null,null,null,"Castelo Branco","Belmonte"]
[null,null,null,null,null,null,"Castelo Branco","Castelo Branco"]
[null,null,null,null,null,null,"Castelo Branco","Covilhã"]
[null,null,null,null,null,null,"Castelo Branco","Fundão"]
[null,null,null,null,null,null,"Castelo Branco","Idanha-a-Nova"]
[null,null,null,null,null,null,"Castelo Branco","Oleiros"]
[null,null,null,null,null,null,"Castelo Branco","Penamacor"]
[null,null,null,null,null,null,"Castelo Branco","Proença-a-Nova"]
[null,null,null,null,null,null,"Castelo Branco","Sertã"]
[null,null,null,null,null,null,"Castelo Branco","Vila de Rei"]
[null,null,null,null,null,null,"Castelo Branco","Vila Velha de Ródão"]
[null,null,null,null,null,null,"Coimbra","Arganil"]
[null,null,null,null,null,null,"Coimbra","Cantanhede"]
[null,null,null,null,null,null,"Coimbra","Coimbra"]
[null,null,null,null,null,null,"Coimbra","Condeixa-a-Nova"]
[null,null,null,null,null,null,"Coimbra","Figueira da Foz"]
[null,null,null,null,null,null,"Coimbra","Góis"]
[null,null,null,null,null,null,"Coimbra","Lousã"]
[null,null,null,null,null,null,"Coimbra","Mira"]
[null,null,null,null,null,null,"Coimbra","Miranda do Corvo"]
[null,null,null,null,null,null,"Coimbra","Montemor-o-Velho"]
[null,null,null,null,null,null,"Coimbra","Oliveira do Hospital"]
[null,null,null,null,null,null,"Coimbra","Pampilhosa da Serra"]
[null,null,null,null,null,null,"Coimbra","Penacova"]
[null,null,null,null,null,null,"Coimbra","Penela"]
[null,null,null,null,null,null,"Coimbra","Soure"]
[null,null,null,null,null,null,"Coimbra","Tábua"]
[null,null,null,null,null,null,"Coimbra","Vila Nova de Poiares"]
[null,null,null,null,null,null,"Évora","Alandroal"]
[null,null,null,null,null,null,"Évora","Arraiolos"]
[null,null,null,null,null,null,"Évora","Borba"]
[null,null,null,null,null,null,"Évora","Estremoz"]
[null,null,null,null,null,null,"Évora","Évora"]
[null,null,null,null,null,null,"Évora","Montemor-o-Novo"]
[null,null,null,null,null,null,"Évora","Mora"]
[null,null,null,null,null,null,"Évora","Mourão"]
[null,null,null,null,null,null,"Évora","Portel"]
[null,null,null,null,null,null,"Évora","Redondo"]
[null,null,null,null,null,null,"Évora","Reguengos de Monsaraz"]
[null,null,null,null,null,null,"Évora","Vendas Novas"]
[null,null,null,null,null,null,"Évora","Viana do Alentejo"]
[null,null,null,null,null,null,"Évora","Vila Viçosa"]
[null,null,null,null,null,null,"Faro","Albufeira"]
[null,null,null,null,null,null,"Faro","Alcoutim"]
[null,null,null,null,null,null,"Faro","Aljezur"]
[null,null,null,null,null,null,"Faro","Castro Marim"]
[null,null,null,null,null,null,"Faro","Faro"]
[null,null,null,null,null,null,"Faro","Lagoa"]
[null,null,null,null,null,null,"Faro","Lagos"]
[null,null,null,null,null,null,"Faro","Loulé"]
[null,null,null,null,null,null,"Faro","Monchique"]
[null,null,null,null,null,null,"Faro","Olhão"]
[null,null,null,null,null,null,"Faro","Portimão"]
[null,null,null,null,null,null,"Faro","São Brás de Alportel"]
[null,null,null,null,null,null,"Faro","Silves"]
[null,null,null,null,null,null,"Faro","Tavira"]
[null,null,null,null,null,null,"Faro","Vila do Bispo"]
[null,null,null,null,null,null,"Faro","Vila Real de Santo António"]
[null,null,null,null,null,null,"Guarda","Aguiar da Beira"]
[null,null,null,null,null,null,"Guarda","Almeida"]
[null,null,null,null,null,null,"Guarda","Celorico da Beira"]
[null,null,null,null,null,null,"Guarda","Figueira de Castelo Rodrigo"]
[null,null,null,null,null,null,"Guarda","Fornos de Algodres"]
[null,null,null,null,null,null,"Guarda","Gouveia"]
[null,null,null,null,null,null,"Guarda","Guarda"]
[null,null,null,null,null,null,"Guarda","Manteigas"]
[null,null,null,null,null,null,"Guarda","Mêda"]
[null,null,null,null,null,null,"Guarda","Pinhel"]
[null,null,null,null,null,null,"Guarda","Sabugal"]
[null,null,null,null,null,null,"Guarda","Seia"]
[null,null,null,null,null,null,"Guarda","Trancoso"]
[null,null,null,null,null,null,"Guarda","Vila Nova de Foz Côa"]
[null,null,null,null,null,null,"Leiria","Alcobaça"]
[null,null,null,null,null,null,"Leiria","Alvaiázere"]
[null,null,null,null,null,null,"Leiria","Ansião"]
[null,null,null,null,null,null,"Leiria","Batalha"]
[null,null,null,null,null,null,"Leiria","Bombarral"]
[null,null,null,null,null,null,"Leiria","Caldas da Rainha"]
[null,null,null,null,null,null,"Leiria","Castanheira de Pera"]
[null,null,null,null,null,null,"Leiria","Figueiró dos Vinhos"]
[null,null,null,null,null,null,"Leiria","Leiria"]
[null,null,null,null,null,null,"Leiria","Marinha Grande"]
[null,null,null,null,null,null,"Leiria","Nazaré"]
[null,null,null,null,null,null,"Leiria","Óbidos"]
[null,null,null,null,null,null,"Leiria","Pedrógão Grande"]
[null,null,null,null,null,null,"Leiria","Peniche"]
[null,null,null,null,null,null,"Leiria","Pombal"]
[null,null,null,null,null,null,"Leiria","Porto de Mós"]
[null,null,null,null,null,null,"Lisboa","Alenquer"]
[null,null,null,null,null,null,"Lisboa","Amadora"]
[null,null,null,null,null,null,"Lisboa","Arruda dos Vinhos"]
[null,null,null,null,null,null,"Lisboa","Azambuja"]
[null,null,null,null,null,null,"Lisboa","Cadaval"]
[null,null,null,null,null,null,"Lisboa","Cascais"]
[null,null,null,null,null,null,"Lisboa","Lisboa"]
[null,null,null,null,null,null,"Lisboa","Loures"]
[null,null,null,null,null,null,"Lisboa","Lourinhã"]
[null,null,null,null,null,null,"Lisboa","Mafra"]
[null,null,null,null,null,null,"Lisboa","Odivelas"]
[null,null,null,null,null,null,"Lisboa","Oeiras"]
[null,null,null,null,null,null,"Lisboa","Sintra"]
[null,null,null,null,null,null,"Lisboa","Sobral de Monte Agraço"]
[null,null,null,null,null,null,"Lisboa","Torres Vedras"]
[null,null,null,null,null,null,"Lisboa","Vila Franca de Xira"]
[null,null,null,null,null,null,"Portalegre","Alter do Chão"]
[null,null,null,null,null,null,"Portalegre","Arronches"]
[null,null,null,null,null,null,"Portalegre","Avis"]
[null,null,null,null,null,null,"Portalegre","Campo Maior"]
[null,null,null,null,null,null,"Portalegre","Castelo de Vide"]
[null,null,null,null,null,null,"Portalegre","Crato"]
[null,null,null,null,null,null,"Portalegre","Elvas"]
[null,null,null,null,null,null,"Portalegre","Fronteira"]
[null,null,null,null,null,null,"Portalegre","Gavião"]
[null,null,null,null,null,null,"Portalegre","Marvão"]
[null,null,null,null,null,null,"Portalegre","Monforte"]
[null,null,null,null,null,null,"Portalegre","Nisa"]
[null,null,null,null,null,null,"Portalegre","Ponte de Sor"]
[null,null,null,null,null,null,"Portalegre","Portalegre"]
[null,null,null,null,null,null,"Portalegre","Sousel"]
[null,null,null,null,null,null,"Portalegre","Olivença"]
[null,null,null,null,null,null,"Porto","Amarante"]
[null,null,null,null,null,null,"Porto","Baião"]
[null,null,null,null,null,null,"Porto","Felgueiras"]
[null,null,null,null,null,null,"Porto","Gondomar"]
[null,null,null,null,null,null,"Porto","Lousada"]
[null,null,null,null,null,null,"Porto","Maia"]
[null,null,null,null,null,null,"Porto","Marco de Canaveses"]
[null,null,null,null,null,null,"Porto","Matosinhos"]
[null,null,null,null,null,null,"Porto","Paços de Ferreira"]
[null,null,null,null,null,null,"Porto","Paredes"]
[null,null,null,null,null,null,"Porto","Penafiel"]
[null,null,null,null,null,null,"Porto","Porto"]
[null,null,null,null,null,null,"Porto","Póvoa de Varzim"]
[null,null,null,null,null,null,"Porto","Santo Tirso"]
[null,null,null,null,null,null,"Porto","Trofa"]
[null,null,null,null,null,null,"Porto","Valongo"]
[null,null,null,null,null,null,"Porto","Vila do Conde"]
[null,null,null,null,null,null,"Porto","Vila Nova de Gaia"]
[null,null,null,null,null,null,"Santarém","Abrantes"]
[null,null,null,null,null,null,"Santarém","Alcanena"]
[null,null,null,null,null,null,"Santarém","Almeirim"]
[null,null,null,null,null,null,"Santarém","Alpiarça"]
[null,null,null,null,null,null,"Santarém","Benavente"]
[null,null,null,null,null,null,"Santarém","Cartaxo"]
[null,null,null,null,null,null,"Santarém","Chamusca"]
[null,null,null,null,null,null,"Santarém","Constância"]
[null,null,null,null,null,null,"Santarém","Coruche"]
[null,null,null,null,null,null,"Santarém","Entroncamento"]
[null,null,null,null,null,null,"Santarém","Ferreira do Zêzere"]
[null,null,null,null,null,null,"Santarém","Golegã"]
[null,null,null,null,null,null,"Santarém","Mação"]
[null,null,null,null,null,null,"Santarém","Ourém"]
[null,null,null,null,null,null,"Santarém","Rio Maior"]
[null,null,null,null,null,null,"Santarém","Salvaterra de Magos"]
[null,null,null,null,null,null,"Santarém","Santarém"]
[null,null,null,null,null,null,"Santarém","Sardoal"]
[null,null,null,null,null,null,"Santarém","Tomar"]
[null,null,null,null,null,null,"Santarém","Torres Novas"]
[null,null,null,null,null,null,"Santarém","Vila Nova da Barquinha"]
[null,null,null,null,null,null,"Setúbal","Alcácer do Sal"]
[null,null,null,null,null,null,"Setúbal","Alcochete"]
[null,null,null,null,null,null,"Setúbal","Almada"]
[null,null,null,null,null,null,"Setúbal","Barreiro"]
[null,null,null,null,null,null,"Setúbal","Grândola"]
[null,null,null,null,null,null,"Setúbal","Moita"]
[null,null,null,null,null,null,"Setúbal","Montijo"]
[null,null,null,null,null,null,"Setúbal","Palmela"]
[null,null,null,null,null,null,"Setúbal","Santiago do Cacém"]
[null,null,null,null,null,null,"Setúbal","Seixal"]
[null,null,null,null,null,null,"Setúbal","Sesimbra"]
[null,null,null,null,null,null,"Setúbal","Setúbal"]
[null,null,null,null,null,null,"Setúbal","Sines"]
[null,null,null,null,null,null,"Viana do Castelo","Arcos de Valdevez"]
[null,null,null,null,null,null,"Viana do Castelo","Caminha"]
[null,null,null,null,null,null,"Viana do Castelo","Melgaço"]
[null,null,null,null,null,null,"Viana do Castelo","Monção"]
[null,null,null,null,null,null,"Viana do Castelo","Paredes de Coura"]
[null,null,null,null,null,null,"Viana do Castelo","Ponte da Barca"]
[null,null,null,null,null,null,"Viana do Castelo","Ponte de Lima"]
[null,null,null,null,null,null,"Viana do Castelo","Valença"]
[null,null,null,null,null,null,"Viana do Castelo","Viana do Castelo"]
[null,null,null,null,null,null,"Viana do Castelo","Vila Nova de Cerveira"]
[null,null,null,null,null,null,"Vila Real","Alijó"]
[null,null,null,null,null,null,"Vila Real","Boticas"]
[null,null,null,null,null,null,"Vila Real","Chaves"]
[null,null,null,null,null,null,"Vila Real","Mesão Frio"]
[null,null,null,null,null,null,"Vila Real","Mondim de Basto"]
[null,null,null,null,null,null,"Vila Real","Montalegre"]
[null,null,null,null,null,null,"Vila Real","Murça"]
[null,null,null,null,null,null,"Vila Real","Peso da Régua"]
[null,null,null,null,null,null,"Vila Real","Ribeira de Pena"]
[null,null,null,null,null,null,"Vila Real","Sabrosa"]
[null,null,null,null,null,null,"Vila Real","Santa Marta de Penaguião"]
[null,null,null,null,null,null,"Vila Real","Valpaços"]
[null,null,null,null,null,null,"Vila Real","Vila Pouca de Aguiar"]
[null,null,null,null,null,null,"Vila Real","Vila Real"]
[null,null,null,null,null,null,"Viseu","Armamar"]
[null,null,null,null,null,null,"Viseu","Carregal do Sal"]
[null,null,null,null,null,null,"Viseu","Castro Daire"]
[null,null,null,null,null,null,"Viseu","Cinfães"]
[null,null,null,null,null,null,"Viseu","Lamego"]
[null,null,null,null,null,null,"Viseu","Mangualde"]
[null,null,null,null,null,null,"Viseu","Moimenta da Beira"]
[null,null,null,null,null,null,"Viseu","Mortágua"]
[null,null,null,null,null,null,"Viseu","Nelas"]
[null,null,null,null,null,null,"Viseu","Oliveira de Frades"]
[null,null,null,null,null,null,"Viseu","Penalva do Castelo"]
[null,null,null,null,null,null,"Viseu","Penedono"]
[null,null,null,null,null,null,"Viseu","Resende"]
[null,null,null,null,null,null,"Viseu","Santa Comba Dão"]
[null,null,null,null,null,null,"Viseu","São João da Pesqueira"]
[null,null,null,null,null,null,"Viseu","São Pedro do Sul"]
[null,null,null,null,null,null,"Viseu","Sátão"]
[null,null,null,null,null,null,"Viseu","Sernancelhe"]
[null,null,null,null,null,null,"Viseu","Tabuaço"]
[null,null,null,null,null,null,"Viseu","Tarouca"]
[null,null,null,null,null,null,"Viseu","Tondela"]
[null,null,null,null,null,null,"Viseu","Vila Nova de Paiva"]
[null,null,null,null,null,null,"Viseu","Viseu"]
[null,null,null,null,null,null,"Viseu","Vouzela"]

{"sheet":"valid","index":3,"n_rows":4,"n_cols":76,"rows_kept":4,"cut":false,"hidden":true,"merged":[[1,3,2,3],[1,6,2,6],[1,11,2,11],[1,26,2,26],[1,33,2,33],[9,77,11,80],[1,43,3,43],[12,64,13,64],[12,66,13,66],[12,68,13,68],[12,71,13,71],[12,72,13,72],[12,76,12,78],[1,63,2,63],[1,74,2,74],[1,49,2,49],[1,54,2,54],[1,56,2,56],[1,59,2,59],[1,61,2,61]]}
[null,"C"]
[null,null,"*Texto introdutório (Instruções gerais de preenchimento e consentimento Informado)","Código de Identificação do Procedimento Concursal","*Código da Publicação BEP","*Ref.ª ","Caracterização do Posto de Trabalho","Carreira","Categoria","Área de Atividade","*Vínculo de Emprego Público","Dados Pessoais","*Nome Completo","*Data de Nascimento","*Sexo","*Nacionalidade","Indique a sua nacionalidade:","*N.º de Identificação Civil","*Caso não disponha de nacionalidade portuguesa, insira, por favor, o seu número de passaporte.","*Morada","*Código Postal","*Distrito","*Concelho de Residência","*Localidade","N.º de contacto","*E-mail","Nivel Habilitacional","*Habilitação","*Curso","Habilitação","Curso","Habilitação","Curso","3. Situação Jurídico-Funcional do Trabalhador","*Titular de vínculo de emprego público","Nomeação","Contrato","*Situação atual","Por favor indique a sua situação profissional atual:","*Órgão ou serviço onde exerce ou por último exerceu funções","*Carreira e categoria detidas","Qual?","*Atividade exercida ou que por último exerceu no órgão ou serviço","Avaliação Desempenho","2015/2016","2017/2018","2019/2020","Não aplicável","Motivo","4. Experiência Profissional e Funções Exercidas","Funções exercidas, diretamente relacionadas com o posto de trabalho a que se candidata","               Data início","               Data fim","Outras funções e atividades exercidas","5. Opção por Métodos de Seleção","“Declaro que afasto os métodos de selecção obrigatórios, Avaliação curricular e Entrevista de avaliação de competências, e opto pelos métodos Prova de conhecimentos e Avaliação psicológica”.","6. Necessidades Especiais (alínea f) do n.º 1 do artigo 19.º da Portaria  n.º 125-A/2019, de 30 de abril)","*Portador de Deficiência ","Caso lhe tenha sido reconhecido, legalmente, algum grau de incapacidade, indique caso necessite de meios/condições especiais para a realização dos métodos de seleção","7. Requisitos de Admissão","“Declaro que reúno os requisitos previstos no artigo 17.º da Lei Geral do Trabalho em Funções Públicas, aprovada em anexo à Lei n.º 35/2014, de 20 de julho, na sua versão atualizada e, se for o caso, os requisitos exigidos na subalínea v) da alínea d) do n.º 1 do artigo 19.º da Portaria n.º 125-A/2019, de 30 de abril”.","8. Declaração (alínea g) do n.º 1 do artigo 19.º da Portaria  n.º 125-A/2019, de 30 de abril)","“Declaro que são verdadeiras as informações prestadas na candidatura”.","9. Documentos anexados à candidatura","*Curriculum vitae","*Certificado de Habilitações","Comprovativos de formação profissional","Declaração de Inscrição em Ordem Profissional","Comprovativo de Avaliação de Desempenho","Formulário de candidatura em Excel e PDF","Declaração comprovativa do respetivo grau de incapacidade e tipo de deficiência","Declaração institucional correspondente à subalínea ii) da alínea d) do n.º 1  do artigo 19.º  da Portaria  n.º 125-A/2019, de 30 de abril, alterada e republicada pela Portaria n.º 12-A/2021, de 11 de janeiro.","Outros","Quais?","10. Confirmação de Submissão de Candidatura","Considero a candidatura completa e pretendo submeter o formulário."]
[null,null,false,null,{"$f":"Form_Candidatura!E8","v":0},{"$f":"Form_Candidatura!E10","v":0},null,1,5,null,false,null,{"$f":"Form_Candidatura!E21","v":0},{"$f":"Form_Candidatura!E23","v":"00:00:00"},{"$f":"Form_Candidatura!E25","v":0},1,{"$f":"Form_Candidatura!H28","v":0},{"$f":"Form_Candidatura!E29","v":0},{"$f":"Form_Candidatura!H31","v":0},{"$f":"Form_Candidatura!E34","v":0},{"$f":"CONCATENATE(Form_Candidatura!E36,Form_Candidatura!F36,Form_Candidatura!G36)","v":"-"},{"$f":"Form_Candidatura!E38","v":0},{"$f":"Form_Candidatura!E40","v":0},{"$f":"Form_Candidatura!E42","v":0},{"$f":"Form_Candidatura!E44","v":0},{"$f":"Form_Candidatura!E46","v":0},null,1,{"$f":"Form_Candidatura!E56","v":0},1,{"$f":"Form_Candidatura!E62","v":0},1,{"$f":"Form_Candidatura!E66","v":0},null,1,1,1,1,{"$f":"Form_Candidatura!E78","v":0},{"$f":"Form_Candidatura!E80","v":0},1,{"$f":"Form_Candidatura!#REF!","v":{"$error":"#REF!"}},{"$f":"Form_Candidatura!E85","v":0},null,{"$f":"Form_Candidatura!E90","v":0},{"$f":"Form_Candidatura!G90","v":0},{"$f":"Form_Candidatura!E92","v":0},false,{"$f":"Form_Candidatura!#REF!","v":{"$error":"#REF!"}},null,{"$f":"Form_Candidatura!E98","v":0},{"$f":"Form_Candidatura!E102","v":0},{"$f":"Form_Candidatura!H102","v":0},{"$f":"Form_Candidatura!E104","v":0},null,true,null,1,{"$f":"Form_Candidatura!#REF!","v":{"$error":"#REF!"}},null,1,null,1,null,false,false,false,false,false,false,false,false,false,{"$f":"Form_Candidatura!G129","v":0},null,false]
[null,null,{"$f":"IF(C3=TRUE,\"Aceitou\",\"Não aceitou\")","v":"Não aceitou"},null,{"$f":"Form_Candidatura!$E$8","v":0},{"$f":"Form_Candidatura!E10","v":0},null,{"$f":"INDEX(Tabelas!A8:A11,valid!H3)","v":0},{"$f":"INDEX(Tabelas!A15:A19,valid!I3)","v":"Outra"},{"$f":"Form_Candidatura!E17","v":0},{"$f":"IF(K3=TRUE,\"CTFC - Tempo indeterminado\",\"Campo não preenchido\")","v":"Campo não preenchido"},null,{"$f":"Form_Candidatura!$E$21","v":0},{"$f":"Form_Candidatura!E23","v":"00:00:00"},{"$f":"Form_Candidatura!E25","v":0},{"$f":"INDEX(Tabelas!E19:E21,valid!P3)","v":0},{"$f":"Form_Candidatura!H28","v":0},{"$f":"Form_Candidatura!E29","v":0},{"$f":"Form_Candidatura!H31","v":0},{"$f":"Form_Candidatura!E34","v":0},{"$f":"CONCATENATE(Form_Candidatura!E36,Form_Candidatura!F36,Form_Candidatura!G36)","v":"-"},{"$f":"Form_Candidatura!E38","v":0},{"$f":"Form_Candidatura!E40","v":0},{"$f":"Form_Candidatura!E42","v":0},{"$f":"Form_Candidatura!E44","v":0},{"$f":"Form_Candidatura!E46","v":0},null,{"$f":"INDEX(Tabelas!C3:C17,AB3)","v":0},{"$f":"Form_Candidatura!E56","v":0},{"$f":"INDEX(Tabelas!C3:C17,AD3)","v":0},{"$f":"Form_Candidatura!E62","v":0},{"$f":"INDEX(Tabelas!C3:C17,valid!AF3)","v":0},{"$f":"Form_Candidatura!E66","v":0},null,{"$f":"INDEX(Tabelas!A3:A5,valid!AI3)","v":0},{"$f":"INDEX(Tabelas!C26:C29,valid!AJ3)","v":0},{"$f":"INDEX(Tabelas!E3:E6,valid!AK3)","v":0},{"$f":"INDEX(Tabelas!E10:E14,valid!AL3)","v":0},{"$f":"Form_Candidatura!E78","v":0},{"$f":"Form_Candidatura!E80","v":0},{"$f":"INDEX(Tabelas!A15:A19,valid!AO3)","v":0},{"$f":"Form_Candidatura!#REF!","v":{"$error":"#REF!"}},{"$f":"Form_Candidatura!E85","v":0},null,{"$f":"Form_Candidatura!E90","v":0},{"$f":"Form_Candidatura!G90","v":0},{"$f":"Form_Candidatura!E92","v":0},{"$f":"IF(AV3=TRUE,\"Não aplicável\",\"\")","v":""},{"$f":"Form_Candidatura!#REF!","v":{"$error":"#REF!"}},null,{"$f":"Form_Candidatura!E98","v":0},{"$f":"Form_Candidatura!E102","v":0},{"$f":"Form_Candidatura!H102","v":0},{"$f":"Form_Candidatura!E104","v":0},null,{"$f":"IF(BD3=TRUE,\"Aceitou\",\"Não aceitou\")","v":"Aceitou"},null,{"$f":"INDEX(Tabelas!A3:A5,valid!BF3)","v":0},{"$f":"Form_Candidatura!#REF!","v":{"$error":"#REF!"}},null,{"$f":"INDEX(Tabelas!A3:A5,valid!BI3)","v":0},null,{"$f":"INDEX(Tabelas!A3:A5,valid!BK3)","v":0},null,{"$f":"BM3","v":false},false,false,false,{"$f":"BQ3","v":false},{"$f":"BR3","v":false},{"$f":"BS3","v":false},{"$f":"BT3","v":false},false,{"$f":"Form_Candidatura!G129","v":0},null,{"$f":"BX3","v":false}]